bitfinex-derivatives/quotes_BTCF0:USTF0_20250308
["timestamp","ask_amount","ask_price","bid_price","bid_amount"]
[1741425857640,0.1158066,86358.0,86356.0,0.1696]
[1741425857842,0.1665,86357.0,86356.0,0.1696]
[1741425858141,0.2823076,86357.0,86356.0,0.1696]
[1741425858545,0.1158103,86355.0,86354.0,54.02995581]
[1741425858742,0.1911703,86355.0,86354.0,54.02931581]
[1741425859636,0.21407188,86355.0,86354.0,54.02931581]
[1741425861937,0.21407188,86355.0,86354.0,54.02041973]
[1741425862846,0.50002614,86355.0,86354.0,54.02041973]
[1741425865348,0.35002614,86355.0,86354.0,54.02041973]
[1741425866241,0.51812614,86355.0,86354.0,54.02041973]
[1741425867240,0.51836614,86355.0,86354.0,54.02041973]
[1741425867847,0.23445584,86355.0,86354.0,54.02041973]
[1741425868051,0.35026614,86355.0,86354.0,54.02041973]
[1741425869949,0.71106614,86355.0,86354.0,54.02041973]
[1741425872550,0.57511188,86355.0,86354.0,54.02041973]
[1741425875239,0.57811188,86355.0,86354.0,54.02141973]
[1741425880855,0.3638,86355.0,86354.0,54.13723133]
[1741425881046,0.07852,86355.0,86354.0,54.17242402]
[1741425881557,0.07852,86355.0,86354.0,54.33742402]
[1741425881761,0.07852,86355.0,86354.0,54.3394107]
[1741425882555,0.07852,86355.0,86354.0,54.30223133]
[1741425883256,0.07852,86355.0,86354.0,54.18641973]
[1741425886557,0.07852,86355.0,86354.0,54.22134173]
[1741425886753,0.07852,86355.0,86354.0,54.2584523]
[1741425886952,0.1943303,86355.0,86354.0,54.2584523]
[1741425887259,0.5551303,86355.0,86354.0,54.2584523]
[1741425887464,0.7186303,86355.0,86354.0,54.18641973]
[1741425890162,0.7186303,86355.0,86354.0,54.22340846]
[1741425891663,0.7186303,86355.0,86354.0,54.18641973]
[1741425892565,0.7186303,86355.0,86354.0,54.22130736]
[1741425892759,0.7186303,86355.0,86354.0,54.18641973]
[1741425893260,0.6358303,86355.0,86354.0,54.22130752]
[1741425894058,0.6358303,86355.0,86354.0,54.25849112]
[1741425894453,0.7150303,86355.0,86354.0,54.25849112]
[1741425897663,0.59922,86355.0,86354.0,54.25849112]
[1741425897860,0.3638,86355.0,86354.0,54.25849112]
[1741425898073,0.43932,86355.0,86354.0,54.25849112]
[1741425899766,0.07848,86355.0,86354.0,54.25849112]
[1741425899961,0.07848,86355.0,86354.0,54.29771228]
[1741425900360,0.5550903,86355.0,86354.0,54.29771228]
[1741425900759,0.5550903,86355.0,86354.0,54.25849112]
[1741425900961,0.7191903,86355.0,86354.0,54.25849112]
[1741425903671,0.7191903,86355.0,86354.0,54.09349112]
[1741425904461,0.5279,86355.0,86354.0,54.09349112]
[1741425904655,0.43932,86355.0,86354.0,54.09349112]
[1741425905370,0.5551303,86355.0,86354.0,54.09349112]
[1741425905567,0.7224303,86355.0,86354.0,54.09349112]
[1741425906862,0.7224303,86355.0,86354.0,54.05860333]
[1741425907067,0.7224303,86355.0,86354.0,54.01244302]
[1741425907371,1.00838456,86355.0,86354.0,53.84101126]
[1741425908272,1.00838456,86355.0,86354.0,53.79701126]
[1741425908457,1.00838456,86355.0,86354.0,53.72883427]
[1741425908657,1.00838456,86355.0,86354.0,53.40807457]
[1741425908858,1.37848456,86355.0,86354.0,52.82328907]
[1741425909057,1.37848456,86355.0,86354.0,52.59297907]
[1741425909263,1.37848456,86355.0,86354.0,52.35478391]
[1741425909575,1.37848456,86355.0,86354.0,52.06006848]
[1741425909763,1.37548456,86355.0,86354.0,52.05906848]
[1741425909959,1.37848456,86355.0,86354.0,52.06006848]
[1741425910266,1.37848456,86355.0,86354.0,51.94692356]
[1741425910573,1.37848456,86355.0,86354.0,51.86211356]
[1741425910874,1.37848456,86355.0,86354.0,50.69177532]
[1741425911075,1.37848456,86355.0,86354.0,50.04981444]
[1741425911262,1.37848456,86355.0,86354.0,50.04099356]
[1741425911461,1.37548456,86355.0,86354.0,49.03855488]
[1741425911870,1.37548456,86355.0,86354.0,49.03131125]
[1741425912372,1.37548456,86355.0,86354.0,48.96407037]
[1741425912564,1.37548456,86355.0,86354.0,48.93977706]
[1741425913074,1.37548456,86355.0,86354.0,48.87242742]
[1741425913369,1.5140798,86355.0,86354.0,48.87242742]
[1741425914160,1.5140798,86355.0,86354.0,48.69865374]
[1741425914556,1.5140798,86355.0,86354.0,48.32526418]
[1741425914761,1.3644398,86355.0,86354.0,48.32526418]
[1741425915168,1.3643998,86355.0,86354.0,48.32526418]
[1741425915559,1.22580456,86355.0,86354.0,48.25059418]
[1741425916774,1.22580456,86355.0,86354.0,48.22059418]
[1741425916968,1.37580456,86355.0,86354.0,48.22059418]
[1741425917373,1.01500456,86355.0,86354.0,48.22059418]
[1741425917673,1.01500456,86355.0,86354.0,48.2090051]
[1741425917674,1.73660456,86355.0,86354.0,48.2090051]
[1741425917867,1.73660456,86355.0,86354.0,47.70817554]
[1741425918073,1.73660456,86355.0,86354.0,47.60301081]
[1741425918275,1.73660456,86355.0,86354.0,47.59294081]
[1741425918465,1.73660456,86355.0,86354.0,47.56997081]
[1741425918773,1.73660456,86355.0,86354.0,47.54977081]
[1741425918965,1.73660456,86355.0,86354.0,47.52127081]
[1741425919166,1.73660456,86355.0,86354.0,47.49027081]
[1741425919776,1.73660456,86355.0,86354.0,47.47791081]
[1741425920077,1.73660456,86355.0,86354.0,47.45106153]
[1741425920475,1.73660456,86355.0,86354.0,47.36376153]
[1741425921174,1.73660456,86355.0,86354.0,47.35669153]
[1741425921874,1.84040685,86355.0,86354.0,47.35669153]
[1741425922074,1.84040685,86355.0,86354.0,47.33512153]
[1741425923177,1.84040685,86355.0,86354.0,47.29739153]
[1741425924271,1.11880685,86355.0,86354.0,47.27560153]
[1741425924580,1.84040685,86355.0,86354.0,47.27560153]
[1741425925477,1.73660456,86355.0,86354.0,47.27560153]
[1741425928072,1.58660456,86355.0,86354.0,47.27560153]
[1741425928981,1.73660456,86355.0,86354.0,47.27560153]
[1741425929181,1.01500456,86355.0,86354.0,47.27111153]
[1741425929569,1.73660456,86355.0,86354.0,47.27111153]
[1741425930479,1.73660456,86355.0,86354.0,47.26518153]
[1741425931776,1.73660456,86355.0,86354.0,47.21310882]
[1741425932090,1.73660456,86355.0,86354.0,47.18249883]
[1741425932280,1.58660456,86355.0,86354.0,47.18249883]
[1741425932475,1.42826456,86355.0,86354.0,47.18249883]
[1741425932781,1.50398456,86355.0,86354.0,47.18249883]
[1741425933477,1.58148456,86355.0,86354.0,47.18249883]
[1741425934086,1.41918456,86355.0,86354.0,47.18249883]
[1741425936686,1.41918456,86355.0,86354.0,47.12379883]
[1741425937280,1.34346456,86355.0,86354.0,47.12379883]
[1741425937479,1.41906456,86355.0,86354.0,47.12379883]
[1741425937876,1.48123499,86355.0,86354.0,47.12379883]
[1741425938871,0.75963499,86355.0,86354.0,47.12379883]
[1741425939079,1.48123499,86355.0,86354.0,47.12379883]
[1741425940684,0.75963499,86355.0,86354.0,47.12379883]
[1741425940886,1.48123499,86355.0,86354.0,47.12379883]
[1741425941088,2.21095499,86355.0,86354.0,47.12379883]
[1741425941284,1.76525499,86355.0,86354.0,47.12379883]
[1741425941484,1.84073499,86355.0,86354.0,47.12379883]
[1741425941979,1.62930073,86355.0,86354.0,47.12379883]
[1741425942186,1.70478073,86355.0,86354.0,47.12379883]
[1741425943592,1.62930073,86355.0,86354.0,47.12379883]
[1741425943789,1.70474073,86355.0,86354.0,47.12379883]
[1741425944595,1.6425703,86355.0,86354.0,47.12379883]
[1741425945576,0.8374103,86355.0,86354.0,47.12379883]
[1741425945892,0.7216,86355.0,86354.0,47.12379883]
[1741425947190,0.7216,86355.0,86354.0,47.20429883]
[1741425947387,0.8374103,86355.0,86354.0,47.20429883]
[1741425950783,0.1158103,86355.0,86354.0,47.20429883]
[1741425950986,0.4766103,86355.0,86354.0,47.20429883]
[1741425951990,0.3608,86355.0,86354.0,47.20429883]
[1741425952383,4e-05,86356.0,86354.0,47.20429883]
[1741425952584,4e-05,86356.0,86355.0,0.1638]
[1741425952784,4e-05,86356.0,86355.0,0.26068021]
[1741425953186,4e-05,86356.0,86355.0,0.3576103]
[1741425953385,9.459e-05,86357.0,86355.0,0.3576103]
[1741425953386,9.459e-05,86357.0,86355.0,0.2418]
[1741425953593,9.459e-05,86357.0,86355.0,0.3576093]
[1741425953790,9.459e-05,86357.0,86355.0,0.3576099]
[1741425953990,0.00013459,86357.0,86355.0,0.2418]
[1741425954494,0.1158089,86356.0,86355.0,0.2418]
[1741425954893,0.1158089,86356.0,86355.0,0.3918]
[1741425955088,0.00013459,86357.0,86355.0,0.2418]
[1741425955290,0.00013459,86357.0,86356.0,0.1158089]
[1741425955488,0.00013459,86357.0,86355.0,0.3576101]
[1741425955692,0.00013459,86357.0,86355.0,0.2418]
[1741425957389,0.00013459,86357.0,86356.0,0.1158089]
[1741425957588,0.00013459,86357.0,86356.0,0.2791089]
[1741425958389,9.459e-05,86357.0,86356.0,0.2791089]
[1741425961199,0.11590219,86357.0,86356.0,0.1633]
[1741425962120,0.13466766,86357.0,86356.0,0.1633]
[1741425962302,0.49546766,86357.0,86356.0,0.1633]
[1741425963298,0.47670219,86357.0,86356.0,0.1633]
[1741425963611,9.459e-05,86357.0,86356.0,0.2791089]
[1741425964996,9.459e-05,86357.0,86356.0,0.1633]
[1741425965902,0.11590219,86357.0,86356.0,0.1633]
[1741425966298,9.459e-05,86357.0,86356.0,0.1633]
[1741425967302,0.11590219,86357.0,86356.0,0.1633]
[1741425968299,9.459e-05,86357.0,86356.0,0.1633]
[1741425968805,0.11590219,86357.0,86356.0,0.1633]
[1741425969309,9.459e-05,86357.0,86356.0,0.1633]
[1741425969810,0.11590219,86357.0,86356.0,0.1633]
[1741425971711,0.19790219,86357.0,86356.0,0.1633]
[1741425971907,0.36080219,86357.0,86356.0,0.1633]
[1741425976606,0.36080219,86357.0,86356.0,0.0843]
[1741425977305,0.72160219,86357.0,86356.0,0.0843]
[1741425978918,0.1158103,86355.0,86354.0,47.12439883]
[1741425979111,0.1158103,86355.0,86354.0,47.12379883]
[1741425980815,0.1158103,86355.0,86354.0,47.16299257]
[1741425984609,0.24499459,86357.0,86354.0,47.16299257]
[1741425984805,0.19790219,86357.0,86355.0,0.19019374]
[1741425985009,0.1907289,86356.0,86355.0,0.27279374]
[1741425985209,0.1907289,86356.0,86355.0,0.2336]
[1741425985417,0.1907289,86356.0,86355.0,0.27279816]
[1741425985816,0.3449289,86356.0,86355.0,0.27279816]
[1741425986416,9.459e-05,86357.0,86355.0,0.27279816]
[1741425986617,0.07501459,86357.0,86356.0,0.03919816]
[1741425987108,0.07501459,86357.0,86356.0,0.19629816]
[1741425987314,0.07497459,86357.0,86356.0,0.19629816]
[1741425988513,0.19078219,86357.0,86356.0,0.19629816]
[1741425988920,0.26708219,86357.0,86356.0,0.19629816]
[1741425989122,0.34308219,86357.0,86356.0,0.19629816]
[1741425989824,0.34308219,86357.0,86356.0,0.1571]
[1741425992529,0.15127459,86357.0,86356.0,0.1571]
[1741425992715,0.15127459,86357.0,86356.0,0.19659951]
[1741425993723,0.26708219,86357.0,86356.0,0.19659951]
[1741425994723,0.07497459,86357.0,86356.0,0.1571]
[1741425995123,0.07497459,86357.0,86356.0,0.19660687]
[1741425997619,0.07497459,86357.0,86356.0,0.21569641]
[1741425998418,9.459e-05,86357.0,86356.0,0.21569641]
[1741425999431,0.11590219,86357.0,86356.0,0.19660687]
[1741426000431,9.459e-05,86357.0,86356.0,0.19660687]
[1741426002333,0.11590219,86357.0,86356.0,0.19660687]
[1741426003629,0.19110219,86357.0,86356.0,0.19660687]
[1741426004433,0.27120219,86357.0,86356.0,0.19660687]
[1741426006129,9.459e-05,86357.0,86356.0,0.19660687]
[1741426013133,0.00309459,86357.0,86356.0,0.19760687]
[1741426013634,0.11890219,86357.0,86356.0,0.19760687]
[1741426013942,0.27170219,86357.0,86356.0,0.19760687]
[1741426016943,0.07809459,86357.0,86356.0,0.19760687]
[1741426017745,0.00309459,86357.0,86356.0,0.19760687]
[1741426019746,0.11890219,86357.0,86356.0,0.19760687]
[1741426021137,0.00309459,86357.0,86356.0,0.19760687]
[1741426022846,0.36389459,86357.0,86356.0,0.19760687]
[1741426023044,0.00309459,86357.0,86356.0,0.31341577]
[1741426023637,0.00309459,86357.0,86356.0,0.19760687]
[1741426024548,0.11890219,86357.0,86356.0,0.19760687]
[1741426024745,0.19410219,86357.0,86356.0,0.19760687]
[1741426026037,0.19410219,86357.0,86356.0,0.19660687]
[1741426026242,0.19410219,86357.0,86356.0,0.19760687]
[1741426026945,0.07829459,86357.0,86356.0,0.19760687]
[1741426027148,0.15359459,86357.0,86356.0,0.19760687]
[1741426027340,0.26940219,86357.0,86356.0,0.19760687]
[1741426027943,0.15359459,86357.0,86356.0,0.19760687]
[1741426028551,0.15359459,86357.0,86356.0,0.19660687]
[1741426028755,0.15359459,86357.0,86356.0,0.19760687]
[1741426029661,0.15059459,86357.0,86356.0,0.19660687]
[1741426029952,0.15359459,86357.0,86356.0,0.19760687]
[1741426031255,0.07829459,86357.0,86356.0,0.19760687]
[1741426033356,0.19410219,86357.0,86356.0,0.19760687]
[1741426034262,0.07829459,86357.0,86356.0,0.19760687]
[1741426037556,0.19410219,86357.0,86356.0,0.19760687]
[1741426037759,0.27100219,86357.0,86356.0,0.19760687]
[1741426039055,0.15519459,86357.0,86356.0,0.19760687]
[1741426039757,0.07829459,86357.0,86356.0,0.19760687]
[1741426041157,0.00309459,86357.0,86356.0,0.19760687]
[1741426043562,0.11890219,86357.0,86356.0,0.19760687]
[1741426043756,0.27830219,86357.0,86356.0,0.19760687]
[1741426045664,0.16249459,86357.0,86356.0,0.19760687]
[1741426050266,0.08309459,86357.0,86356.0,0.19760687]
[1741426050468,0.00309459,86357.0,86356.0,0.19760687]
[1741426050666,0.00309459,86357.0,86356.0,0.31341577]
[1741426050967,0.07484,86370.0,86364.0,0.1157982]
[1741426051160,0.07484,86369.0,86364.0,0.3608]
[1741426051365,0.07484,86369.0,86365.0,0.03950687]
[1741426051561,0.07484,86369.0,86367.0,0.1157936]
[1741426051867,0.07484,86369.0,86368.0,0.11810687]
[1741426052067,0.07493531,86369.0,86368.0,0.11810687]
[1741426052573,0.11888681,86369.0,86368.0,0.11810687]
[1741426053073,0.00309531,86369.0,86368.0,0.11910687]
[1741426053273,0.00309531,86369.0,86368.0,0.23489967]
[1741426053860,0.73016,86371.0,86368.0,0.32209967]
[1741426054067,0.72944,86371.0,86370.0,0.1157902]
[1741426054575,0.72944,86371.0,86370.0,0.15529707]
[1741426057277,0.8452288,86371.0,86370.0,0.15529707]
[1741426058162,0.8452288,86371.0,86370.0,0.03950687]
[1741426058374,0.1157902,86370.0,86369.0,0.03950687]
[1741426058562,0.2992902,86370.0,86369.0,0.03950687]
[1741426058767,0.2992902,86370.0,86369.0,0.21800687]
[1741426059682,0.6600902,86370.0,86369.0,0.03950687]
[1741426059870,0.1158043,86360.0,86356.0,0.1785]
[1741426060181,0.268,86359.0,86357.0,0.03980113]
[1741426060369,0.3838059,86359.0,86357.0,0.03980113]
[1741426060675,0.3828059,86359.0,86358.0,0.1785]
[1741426060877,0.267,86359.0,86358.0,0.1785]
[1741426061174,0.267,86359.0,86358.0,0.21830113]
[1741426061373,0.4576449,86359.0,86358.0,0.13000113]
[1741426061566,0.34184,86359.0,86358.0,0.03980113]
[1741426061971,0.34184,86359.0,86356.0,0.0912]
[1741426062982,0.34184,86359.0,86358.0,0.001]
[1741426063370,0.4576449,86359.0,86358.0,0.001]
[1741426063569,0.34184,86359.0,86356.0,0.001]
[1741426064071,0.34184,86359.0,86355.0,0.0902]
[1741426064072,0.34184,86359.0,86358.0,0.001]
[1741426065583,0.4576449,86359.0,86358.0,0.001]
[1741426066077,0.34184,86359.0,86356.0,0.001]
[1741426066473,0.1148062,86358.0,86357.0,0.0884]
[1741426066971,0.2937062,86358.0,86357.0,0.0884]
[1741426067184,0.1789,86358.0,86357.0,0.0884]
[1741426067679,0.1789,86358.0,86357.0,0.0894]
[1741426067874,0.2947062,86358.0,86357.0,0.0894]
[1741426068075,0.2947062,86358.0,86357.0,0.001]
[1741426068470,0.1789,86358.0,86357.0,0.001]
[1741426069673,0.2947062,86358.0,86357.0,0.001]
[1741426072276,0.3007062,86358.0,86357.0,0.001]
[1741426074180,0.1158089,86356.0,86355.0,0.1751]
[1741426074586,0.4766089,86356.0,86355.0,0.1751]
[1741426075882,0.3608,86356.0,86354.0,47.12439883]
[1741426076090,0.2992103,86355.0,86354.0,47.12439883]
[1741426076389,0.2992103,86355.0,86354.0,47.12379883]
[1741426086582,0.58530743,86355.0,86354.0,46.40944778]
[1741426087587,0.58530743,86355.0,86354.0,46.39614778]
[1741426087995,0.58530743,86355.0,86354.0,46.36230778]
[1741426088193,0.58530743,86355.0,86354.0,46.35140778]
[1741426088388,0.58530743,86355.0,86354.0,46.31420778]
[1741426090592,0.58530743,86355.0,86354.0,46.28220778]
[1741426090797,0.58530743,86355.0,86354.0,46.24849778]
[1741426091197,0.43530743,86355.0,86354.0,46.24849778]
[1741426092702,0.51018743,86355.0,86354.0,46.24849778]
[1741426094202,0.51018743,86355.0,86354.0,46.23919778]
[1741426095202,0.51018743,86355.0,86354.0,46.22989778]
[1741426096301,0.51018743,86355.0,86354.0,46.22059778]
[1741426097206,0.51018743,86355.0,86354.0,46.21129778]
[1741426099597,0.43530743,86355.0,86354.0,46.21129778]
[1741426099795,0.51018743,86355.0,86354.0,46.21129778]
[1741426102208,0.51018743,86355.0,86354.0,46.18697257]
[1741426104296,0.51018743,86355.0,86354.0,46.17777257]
[1741426104997,1.23178743,86355.0,86354.0,46.17777257]
[1741426109010,1.23178743,86355.0,86354.0,46.15302905]
[1741426109311,1.23178743,86355.0,86354.0,46.10695905]
[1741426113404,1.23178743,86355.0,86354.0,46.04775905]
[1741426114810,1.37061202,86355.0,86354.0,46.04775905]
[1741426116113,1.18721202,86355.0,86354.0,46.04775905]
[1741426117407,1.26841202,86355.0,86354.0,46.04775905]
[1741426117808,1.12958743,86355.0,86354.0,46.04775905]
[1741426118418,1.14758743,86355.0,86354.0,46.04775905]
[1741426120712,1.23048743,86355.0,86354.0,46.04775905]
[1741426120918,1.06638743,86355.0,86354.0,46.04775905]
[1741426124422,1.79602743,86355.0,86354.0,46.04775905]
[1741426125417,1.88422743,86355.0,86354.0,46.04775905]
[1741426126322,1.88422743,86355.0,86354.0,46.03845905]
[1741426130526,1.88422743,86355.0,86354.0,45.99315905]
[1741426132918,1.96972743,86355.0,86354.0,45.99315905]
[1741426134738,1.24812743,86355.0,86354.0,45.99315905]
[1741426134917,1.96972743,86355.0,86354.0,45.99315905]
[1741426136229,1.96972743,86355.0,86354.0,45.91616905]
[1741426136924,1.96972743,86355.0,86354.0,45.85295905]
[1741426137125,1.96972743,86355.0,86354.0,45.73555905]
[1741426137332,1.96972743,86355.0,86354.0,45.69775905]
[1741426138327,1.96972743,86355.0,86354.0,45.68492056]
[1741426139432,1.96972743,86355.0,86354.0,45.64912056]
[1741426139626,1.96972743,86355.0,86354.0,45.61712056]
[1741426140331,2.03085697,86355.0,86354.0,45.61712056]
[1741426140735,2.03085697,86355.0,86354.0,45.61312056]
[1741426140937,1.30925697,86355.0,86354.0,45.61312056]
[1741426141137,2.03085697,86355.0,86354.0,45.61312056]
[1741426141437,2.03085697,86355.0,86354.0,45.61012056]
[1741426141637,2.11365697,86355.0,86354.0,45.61012056]
[1741426142134,2.11365697,86355.0,86354.0,45.51442056]
[1741426143533,1.39205697,86355.0,86354.0,45.51442056]
[1741426143733,2.11365697,86355.0,86354.0,45.51442056]
[1741426147440,2.11365697,86355.0,86354.0,45.46842056]
[1741426147839,2.05252743,86355.0,86354.0,45.46842056]
[1741426148837,2.05252743,86355.0,86354.0,45.44142056]
[1741426149032,2.05252743,86355.0,86354.0,45.38502056]
[1741426149433,2.05252743,86355.0,86354.0,45.35902056]
[1741426152643,2.05252743,86355.0,86354.0,45.33232056]
[1741426153445,2.05252743,86355.0,86354.0,45.30232056]
[1741426154346,2.05252743,86355.0,86354.0,45.29432774]
[1741426154849,2.11397202,86355.0,86354.0,45.29432774]
[1741426155033,2.11397202,86355.0,86354.0,45.26332774]
[1741426155239,2.11397202,86355.0,86354.0,45.14477774]
[1741426155846,2.11397202,86355.0,86354.0,45.08757774]
[1741426156047,2.11397202,86355.0,86354.0,45.04287774]
[1741426156950,2.11397202,86355.0,86354.0,44.64123028]
[1741426157949,2.11397202,86355.0,86354.0,44.56513028]
[1741426158252,2.11397202,86355.0,86354.0,44.55583028]
[1741426158451,2.11397202,86355.0,86354.0,44.49043028]
[1741426160355,2.03117202,86355.0,86354.0,44.49043028]
[1741426160744,1.94567202,86355.0,86354.0,44.49043028]
[1741426164647,1.85747202,86355.0,86354.0,44.46343028]
[1741426165153,1.94607202,86355.0,86354.0,44.46343028]
[1741426165453,1.88462743,86355.0,86354.0,44.46343028]
[1741426166255,1.16302743,86355.0,86354.0,44.46343028]
[1741426166451,1.97102743,86355.0,86354.0,44.46343028]
[1741426171958,2.20413163,86355.0,86354.0,44.46343028]
[1741426172154,1.48253163,86355.0,86354.0,44.46343028]
[1741426172343,2.20413163,86355.0,86354.0,44.46343028]
[1741426173647,2.20413163,86355.0,86354.0,44.45620255]
[1741426173853,2.20413163,86355.0,86354.0,44.43071776]
[1741426174460,2.20413163,86355.0,86354.0,44.35771776]
[1741426174661,2.03040765,86355.0,86354.0,44.35771776]
[1741426177162,2.03040765,86355.0,86354.0,44.32971776]
[1741426177961,1.97102743,86355.0,86354.0,44.32971776]
[1741426178261,1.24942743,86355.0,86354.0,44.32971776]
[1741426178562,1.97102743,86355.0,86354.0,44.32971776]
[1741426179955,1.88462743,86355.0,86354.0,44.32971776]
[1741426180156,1.96902743,86355.0,86354.0,44.32971776]
[1741426184667,1.96902743,86355.0,86354.0,44.30171776]
[1741426185064,2.20225166,86355.0,86354.0,44.30171776]
[1741426185364,2.20225166,86355.0,86354.0,44.27455896]
[1741426187168,1.48065166,86355.0,86354.0,44.27455896]
[1741426187368,2.20225166,86355.0,86354.0,44.27455896]
[1741426188268,2.20225166,86355.0,86354.0,44.24705896]
[1741426188969,2.02852084,86355.0,86354.0,44.24705896]
[1741426189271,2.02852084,86355.0,86354.0,44.21905896]
[1741426190862,2.02852084,86355.0,86354.0,44.19526498]
[1741426191370,2.02852084,86355.0,86354.0,44.16826498]
[1741426192066,2.02852084,86355.0,86354.0,40.27662498]
[1741426192272,2.02852084,86355.0,86354.0,40.25246618]
[1741426193872,1.85552084,86355.0,86354.0,40.25246618]
[1741426196366,2.0292762,86355.0,86354.0,40.25246618]
[1741426199773,1.3076762,86355.0,86354.0,40.25246618]
[1741426200074,2.0292762,86355.0,86354.0,40.25246618]
[1741426201976,2.1149762,86355.0,86354.0,40.25246618]
[1741426202377,2.2019762,86355.0,86354.0,40.25246618]
[1741426202772,2.0292762,86355.0,86354.0,40.25246618]
[1741426203675,1.85552084,86355.0,86354.0,40.25246618]
[1741426205279,1.94282084,86355.0,86354.0,40.25246618]
[1741426206182,2.03042084,86355.0,86354.0,40.25246618]
[1741426207578,1.85552084,86355.0,86354.0,40.25246618]
[1741426208376,1.93762084,86355.0,86354.0,40.25246618]
[1741426208876,1.93762084,86355.0,86354.0,40.19378182]
[1741426209071,1.93762084,86355.0,86354.0,40.19041182]
[1741426209985,2.01782084,86355.0,86354.0,40.19041182]
[1741426211574,2.01782084,86355.0,86354.0,40.18717182]
[1741426212782,2.01782084,86355.0,86354.0,40.18267182]
[1741426215281,1.29622084,86355.0,86354.0,40.18267182]
[1741426215491,2.01782084,86355.0,86354.0,40.18267182]
[1741426215786,2.01782084,86355.0,86354.0,40.17755182]
[1741426215984,2.01782084,86355.0,86354.0,40.14451182]
[1741426218386,2.01782084,86355.0,86354.0,40.13988182]
[1741426218588,2.01782084,86355.0,86354.0,40.12983182]
[1741426218786,1.85552084,86355.0,86354.0,40.12983182]
[1741426219889,1.93962084,86355.0,86354.0,40.12359182]
[1741426221195,1.85552084,86355.0,86354.0,40.12359182]
[1741426222895,1.93912084,86355.0,86354.0,40.12065182]
[1741426223507,1.85552084,86355.0,86354.0,40.12065182]
[1741426224199,1.85552084,86355.0,86354.0,40.11711182]
[1741426224795,1.13392084,86355.0,86354.0,40.11711182]
[1741426225000,1.85552084,86355.0,86354.0,40.11711182]
[1741426225197,1.85552084,86355.0,86354.0,40.11375182]
[1741426225701,1.96978832,86355.0,86354.0,40.11375182]
[1741426228310,1.96978832,86355.0,86354.0,40.15117142]
[1741426229009,1.89490832,86355.0,86354.0,40.15117142]
[1741426229204,1.89490832,86355.0,86354.0,40.11375182]
[1741426229405,1.83379406,86355.0,86354.0,40.19019027]
[1741426229599,1.66003317,86355.0,86354.0,40.19019027]
[1741426229808,1.58519317,86355.0,86354.0,40.19019027]
[1741426230008,1.66003317,86355.0,86354.0,40.19019027]
[1741426231309,1.58519317,86355.0,86354.0,40.19019027]
[1741426231505,1.66003317,86355.0,86354.0,40.34019027]
[1741426231809,1.66003317,86355.0,86354.0,40.38059087]
[1741426232011,1.59489075,86355.0,86354.0,40.38059087]
[1741426233015,1.59500412,86355.0,86354.0,40.38059087]
[1741426233818,1.59500412,86355.0,86354.0,40.34019027]
[1741426234425,1.52016412,86355.0,86354.0,40.34019027]
[1741426236022,0.3608,86364.0,86354.0,40.39502301]
[1741426236311,0.3608,86374.0,86363.0,0.3608]
[1741426236514,0.3608,86374.0,86364.0,0.24690395]
[1741426236721,0.1157903,86370.0,86365.0,0.03737456]
[1741426236919,4e-05,86371.0,86366.0,0.03737456]
[1741426237118,0.20855222,86382.0,86370.0,0.3608]
[1741426237313,0.28335222,86382.0,86371.0,0.6133]
[1741426237615,0.28335222,86382.0,86381.0,0.3608]
[1741426237616,0.18971352,86382.0,86381.0,0.3608]
[1741426237922,0.17188762,86382.0,86381.0,0.3608]
[1741426238223,0.17188762,86382.0,86381.0,0.5108]
[1741426238410,0.17202215,86382.0,86381.0,0.5108]
[1741426240622,0.00013453,86382.0,86381.0,0.5108]
[1741426241218,0.10390546,86384.0,86381.0,0.5108]
[1741426241717,0.10390546,86384.0,86383.0,0.1157727]
[1741426242223,0.10399907,86384.0,86383.0,0.5250727]
[1741426242615,0.10399907,86384.0,86383.0,0.4093]
[1741426242923,9.361e-05,86384.0,86383.0,0.5250727]
[1741426243422,9.361e-05,86384.0,86383.0,0.4093]
[1741426243822,9.361e-05,86384.0,86383.0,0.5250727]
[1741426247117,0.1157601,86393.0,86392.0,0.1157601]
[1741426247622,0.0748,86403.0,86392.0,0.15]
[1741426247818,0.0824,86402.0,86401.0,0.1157486]
[1741426248013,0.0824,86402.0,86395.0,0.0578783]
[1741426248014,0.0824,86402.0,86399.0,0.0578751]
[1741426248220,0.14038921,86402.0,86397.0,0.1157537]
[1741426248422,0.1157514,86399.0,86398.0,0.1157526]
[1741426248724,0.1157514,86399.0,86398.0,0.13021815]
[1741426249727,0.1157514,86399.0,86398.0,0.01446555]
[1741426249916,0.16841551,86402.0,86396.0,0.1157547]
[1741426250118,0.115754,86397.0,86396.0,0.1157547]
[1741426250323,0.43556,86436.0,86396.0,0.71572511]
[1741426250622,0.43556,86436.0,86428.0,0.3608]
[1741426250815,0.43556,86436.0,86418.0,0.3608]
[1741426251017,0.1157221,86421.0,86418.0,0.4765258]
[1741426251329,0.00010535,86420.0,86419.0,0.1157245]
[1741426252229,0.00010535,86420.0,86418.0,0.3608]
[1741426253839,0.00010535,86420.0,86419.0,0.1157245]
[1741426254532,0.00010535,86420.0,86418.0,0.3608]
[1741426255839,0.1157245,86419.0,86418.0,0.3608]
[1741426256131,0.2892245,86419.0,86418.0,0.3608]
[1741426257525,0.1735,86419.0,86418.0,0.3608]
[1741426258121,0.2892245,86419.0,86418.0,0.3608]
[1741426259035,0.24826,86419.0,86410.0,8.293e-05]
[1741426259225,0.1157352,86411.0,86410.0,8.293e-05]
[1741426260238,0.2872352,86411.0,86410.0,8.293e-05]
[1741426260435,0.1157526,86398.0,86387.0,0.3608]
[1741426260632,0.1157554,86396.0,86393.0,0.34291463]
[1741426260832,0.0855,86395.0,86393.0,0.34291463]
[1741426261028,0.1715,86395.0,86393.0,0.34291463]
[1741426261236,0.115758,86394.0,86393.0,0.34291463]
[1741426261630,0.287258,86394.0,86393.0,0.34291463]
[1741426265340,0.1157687,86386.0,86385.0,0.00017355]
[1741426265533,0.1905287,86386.0,86385.0,0.00017355]
[1741426266142,0.3577287,86386.0,86385.0,0.00017355]
[1741426269444,0.71866624,86386.0,86385.0,0.00017355]
[1741426269636,0.1157835,86375.0,86363.0,0.3608]
[1741426269840,0.4765835,86375.0,86363.0,0.3608]
[1741426270134,0.4765835,86375.0,86371.0,0.00878345]
[1741426270335,0.4765835,86375.0,86374.0,0.14019195]
[1741426270536,0.4765835,86375.0,86374.0,0.00649195]
[1741426270742,0.5620835,86375.0,86374.0,0.00649195]
[1741426272745,0.0578925,86374.0,86367.0,0.00887526]
[1741426272944,0.215653,86373.0,86366.0,0.00017365]
[1741426273138,0.1157909,86370.0,86366.0,0.00017365]
[1741426273344,0.083,86369.0,86366.0,0.00017365]
[1741426273551,0.1157942,86367.0,86366.0,0.00017365]
[1741426274246,0.1987942,86367.0,86366.0,0.00017365]
[1741426274448,0.2126007,86367.0,86366.0,0.00017365]
[1741426277646,0.2126007,86367.0,86366.0,0.00878711]
[1741426278447,0.1987942,86367.0,86366.0,0.00878711]
[1741426278648,0.07476,86367.0,86366.0,0.00878711]